lending/lending_fUSD_20250815
["ID","MTS","AMOUNT","RATE_DAILY","PERIOD"]
[379241553,1755217831776,-150.0,0.00022636,2]
[379241554,1755217831786,-150.0,0.00022636,2]
[379241555,1755217831796,-150.0,0.00022636,2]
[379241556,1755217831808,-150.0,0.00022636,2]
[379241557,1755217831818,-150.0,0.00022636,2]
[379241558,1755217831829,-150.0,0.00022636,2]
[379241559,1755217831838,-150.0,0.00022636,2]
[379241561,1755217831847,-150.0,0.00022636,2]
[379241562,1755217831857,-150.0,0.00022636,2]
[379241563,1755217831867,-150.0,0.00022636,2]
[379241564,1755217831877,-150.0,0.00022642,2]
[379241565,1755217831886,-150.0,0.00022784,4]
[379241566,1755217831896,-239.23952444,0.00022798,2]
[379241567,1755217831906,-150.0,0.00022932,4]
[379241568,1755217831915,-150.0,0.0002295,4]
[379241569,1755217831924,-150.0,0.00023055,4]
[379241570,1755217831933,-150.0,0.00023079,4]
[379241571,1755217831946,-150.0,0.00023139,4]
[379241572,1755217831955,-150.0,0.00023152,2]
[379241573,1755217831964,-157.14,0.00023182,2]
[379241574,1755217831973,-150.0,0.00023227,4]
[379241575,1755217831983,-150.0,0.00023264,4]
[379241576,1755217831992,-462.91667724,0.00023317,2]
[379241577,1755217832002,-5888.0,0.0002334,2]
[379241578,1755217832012,-200.0,0.00023371,2]
[379241579,1755217832021,-150.0,0.00023375,4]
[379241580,1755217832030,-150.0,0.0002338,2]
[379241581,1755217832040,-150.0,0.00023409,2]
[379241582,1755217832050,-510.22203111,0.00023421,2]
[379241583,1755217832060,-150.0,0.00023474,4]
[379241584,1755217832070,-150.0,0.00023474,4]
[379241585,1755217832079,-150.0,0.00023474,4]
[379241586,1755217832088,-150.0,0.0002351,2]
[379241587,1755217832098,-1100.0,0.00023523,2]
[379241588,1755217832107,-150.0,0.00023523,4]
[379241589,1755217832116,-557.52738499,0.00023525,2]
[379241590,1755217832126,-150.0,0.00023556,2]
[379241591,1755217832145,-150.0,0.0002357,2]
[379241592,1755217832155,-150.0,0.00023579,4]
[379241593,1755217832165,-604.83273887,0.00023628,2]
[379241594,1755217832174,-150.0,0.00023635,2]
[379241595,1755217832184,-150.0,0.00023642,4]
[379241596,1755217832195,-150.0,0.00023671,4]
[379241597,1755217832205,-1000.0,0.00023719,2]
[379241598,1755217832215,-204.15,0.00023726,2]
[379241599,1755217832225,-150.0,0.00023729,2]
[379241600,1755217832235,-652.13809275,0.00023732,2]
[379241601,1755217832246,-339.32,0.00023757,2]
[379241602,1755217832255,-150.0,0.00023778,2]
[379241603,1755217832265,-1149.0,0.0002378,2]
[379241604,1755217832274,-150.0,0.00023789,2]
[379241605,1755217832284,-150.0,0.00023819,4]
[379241606,1755217832294,-699.44344663,0.00023836,2]
[379241607,1755217832304,-150.0,0.00023852,2]
[379241608,1755217832313,-303.95,0.00023852,2]
[379241609,1755217832323,-150.0,0.00023859,2]
[379241610,1755217832332,-303.7,0.00023869,2]
[379241611,1755217832341,-500.0,0.00023876,2]
[379241612,1755217832351,-150.0,0.00023884,2]
[379241614,1755217832360,-165.89,0.0002389,2]
[379241616,1755217832369,-150.0,0.00023893,4]
[379241618,1755217832379,-150.0,0.00023893,4]
[379241620,1755217832388,-150.0,0.00023893,4]
[379241622,1755217832398,-150.0,0.00023893,4]
[379241624,1755217832408,-150.0,0.00023893,4]
[379241626,1755217832418,-150.0,0.00023893,4]
[379241628,1755217832427,-170.0,0.0002392,7]
[379241630,1755217832436,-1200.0,0.00023935,2]
[379241632,1755217832446,-241.05,0.00023936,2]
[379241634,1755217832456,-228.63,0.00023936,2]
[379241636,1755217832465,-1346.42,0.00023936,2]
[379241638,1755217832474,-1211.0,0.00023938,2]
[379241640,1755217832483,-746.74880051,0.0002394,2]
[379241642,1755217832493,-250.0,0.0002396,2]
[379241644,1755217832502,-150.0,0.00023963,2]
[379241646,1755217832511,-200.0,0.00023966,2]
[379241648,1755217832520,-150.0,0.00023967,4]
[379241650,1755217832530,-150.0,0.00024005,2]
[379241652,1755217832539,-9518.43,0.00024008,2]
[379241655,1755217832549,-1000.0,0.00024028,2]
[379241657,1755217832559,-150.0,0.00024031,2]
[379241659,1755217832568,-794.05415438,0.00024044,2]
[379241661,1755217832577,-150.0,0.00024076,2]
[379241663,1755217832587,-150.0,0.00024084,2]
[379241665,1755217832596,-1000.0,0.00024087,2]
[379241667,1755217832606,-196.5,0.00024101,2]
[379241669,1755217832615,-156.0,0.00024109,3]
[379241671,1755217832624,-150.0,0.00024115,4]
[379241673,1755217832634,-150.0,0.0002413,2]
[379241675,1755217832643,-150.0,0.00024139,2]
[379241677,1755217832653,-150.0,0.00024145,4]
[379241679,1755217832663,-841.35950826,0.00024147,2]
[379241681,1755217832672,-150.0,0.00024154,2]
[379241683,1755217832682,-150.0,0.0002416,2]
[379241685,1755217832691,-150.0,0.00024185,2]
[379241687,1755217832700,-300.0,0.000242,8]
[379241689,1755217832709,-150.0,0.00024208,4]
[379241691,1755217832719,-888.66486214,0.00024251,2]
[379241693,1755217832728,-410.52085409,0.00024262,2]
[379241695,1755217832738,-150.0,0.00024263,4]
[379241697,1755217832747,-150.0,0.000243,2]
[379241699,1755217832757,-700.0,0.000243,8]
[379241700,1755217832766,-1000.0,0.00024301,2]
[379241702,1755217832775,-150.0,0.00024312,4]
[379241704,1755217832784,-150.0,0.00024312,4]
[379241706,1755217832794,-150.0,0.00024312,4]
[379241708,1755217832805,-300.0,0.00024333,2]
[379241710,1755217832816,-150.0,0.00024347,2]
[379241712,1755217832826,-935.97021602,0.00024355,2]
[379241715,1755217832835,-150.0,0.00024394,2]
[379241717,1755217832845,-1100.0,0.000244,8]
[379241719,1755217832855,-150.0,0.00024411,4]
[379241721,1755217832864,-150.0,0.00024416,2]
[379241723,1755217832873,-150.0,0.00024419,2]
[379241725,1755217832884,-150.0,0.00024439,2]
[379241727,1755217832895,-983.2755699,0.00024459,2]
[379241729,1755217832904,-1070.13374574,0.00024469,2]
[379241731,1755217832914,-277.35679052,0.00024469,2]
[379241733,1755217832923,-1595.98,0.0002447,2]
[379241735,1755217832932,-150.0,0.00024488,2]
[379241737,1755217832943,-150.0,0.00024489,2]
[379241739,1755217832953,-1400.0,0.000245,8]
[379241741,1755217832963,-303.69,0.00024503,2]
[379241743,1755217832972,-150.0,0.00024522,4]
[379241745,1755217832982,-150.0,0.00024559,4]
[379241747,1755217832993,-150.0,0.00024561,2]
[379241749,1755217833003,-1030.58092377,0.00024563,2]
[379241751,1755217833012,-819.6026422,0.00024566,2]
[379241753,1755217833021,-2681.0,0.0002458,2]
[379241755,1755217833032,-1800.0,0.000246,8]
[379241757,1755217833042,-204.15,0.00024616,2]
[379241759,1755217833052,-20468.27409985,0.00024635,2]
[379241761,1755217833062,-5948.32091,0.0002464,2]
[379241763,1755217833072,-5948.32091,0.0002464,2]
[379241765,1755217833082,-1000.0,0.00024645,2]
[379241766,1755217833092,-150.0,0.00024648,4]
[379241768,1755217833101,-150.0,0.00024649,2]
[379241770,1755217833111,-1077.88627765,0.00024666,2]
[379241772,1755217833120,-552.0,0.00024668,2]
[379241774,1755217833130,-162.90358747,0.0002468,2]
[379241776,1755217833140,-6936.1804,0.0002468,2]
[379241777,1755217833149,-170.5275,0.0002468,2]
[379241779,1755217833159,-2500.0,0.0002468,2]
[379241780,1755217833169,-483.7207,0.0002468,2]
[379241781,1755217833179,-6645.33327081,0.00024689,2]
[379241782,1755217833188,-1000.0,0.000247,2]
[379241783,1755217833198,-300.0,0.000247,9]
[379241784,1755217833208,-6645.33327079,0.00024701,2]
[379241785,1755217833217,-150.0,0.00024707,4]
[379241786,1755217833227,-6645.33327079,0.00024714,2]
[379241787,1755217833236,-48627.68482687,0.00024719,14]
[379241788,1755217833893,-1365.15887065,0.00024719,14]
[379241789,1755217833905,-454.32105743,0.00024719,14]
[379241810,1755217837855,-2623.03634845,0.00024719,14]
[379241887,1755217840210,-17979.0388966,0.00024719,14]
[379241888,1755217840219,-6326.23592678,0.00024719,14]
[379241889,1755217840923,-400.61654612,0.00024719,14]
[379241890,1755217841113,-19473.8175271,0.00024719,14]
[379241891,1755217841124,-11954.93,0.00024719,14]
[379241892,1755217841136,-6645.33327079,0.00024726,2]
[379241893,1755217841145,-150.0,0.00024732,4]
[379241894,1755217841155,-6645.33327079,0.00024738,2]
[379241895,1755217841164,-255.0,0.00024749,2]
[379241896,1755217841173,-6645.33327079,0.00024751,2]
[379241897,1755217841183,-5000.0,0.00024759,2]
[379241898,1755217841193,-6645.33327079,0.00024763,2]
[379241899,1755217841204,-150.0,0.00024765,2]
[379241900,1755217841214,-1125.19163153,0.0002477,2]
[379241901,1755217841223,-162.90358747,0.00024773,2]
[379241902,1755217841233,-6645.33327079,0.00024775,2]
[379241903,1755217841243,-422.0,0.00024779,2]
[379241904,1755217841253,-20085.79,0.00024779,14]
[379241905,1755217841262,-1000.0,0.00024779,2]
[379241906,1755217841271,-1000.0,0.0002478,2]
[379241907,1755217841281,-585.58224001,0.0002478,2]
[379241908,1755217841290,-5920.13,0.0002478,2]
[379241909,1755217841301,-34532.0512,0.0002478,2]
[379241910,1755217841310,-190310.13,0.0002478,2]
[379241911,1755217841320,-1500.0,0.0002478,2]
[379241912,1755217841330,-2471.16006935,0.00024784,2]
[379241913,1755217841339,-158.46943863,0.00024786,2]
[379241914,1755217841350,-6645.33327079,0.00024788,2]
[379241915,1755217841359,-1616.49491495,0.0002479,2]
[379241916,1755217841368,-300.0,0.000248,9]
[379241917,1755217841382,-6645.33327079,0.000248,2]
[379241918,1755217841392,-81090.667193,0.000248,2]
[379241919,1755217841401,-2877.11072212,0.000248,2]
[379241920,1755217841410,-329.0587912,0.000248,2]
[379241921,1755217841420,-164.06346403,0.000248,2]
[379241922,1755217841430,-150.0,0.00024805,2]
[379241923,1755217841439,-150.0,0.00024813,2]
[379241924,1755217841449,-150.0,0.00024826,2]
[379241925,1755217841459,-150.0,0.00024834,2]
[379241926,1755217841468,-150.0,0.00024836,4]
[379241927,1755217841478,-150.0,0.00024837,2]
[379241928,1755217841487,-16218.1334386,0.00024838,2]
[379241929,1755217841498,-97308.8006315,0.00024839,2]
[379241930,1755217841507,-192.53148686,0.00024839,2]
[379241931,1755217841723,-1478.16,0.00024844,2]
[379241932,1755217841732,-3794.4,0.00024844,2]
[379241933,1755217841742,-1210.94,0.00024844,2]
[379241934,1755217841751,-1130.47,0.00024844,2]
[379241935,1755217841760,-400.0,0.00024844,2]
[379241936,1755217841770,-966.51,0.00024844,2]
[379241937,1755217841779,-2964.4,0.00024844,2]
[379241938,1755217841788,-505.97574834,0.00024844,2]
[379241939,1755217841799,-400.0,0.00024844,2]
[379241940,1755217841811,-400.0,0.00024844,2]
[379241941,1755217841822,-431.55,0.00024844,2]
[379241942,1755217841832,-400.0,0.00024844,2]
[379241943,1755217841843,-2143.88,0.00024844,2]
[379241944,1755217841852,-871.53,0.00024844,2]
[379241945,1755217841862,-400.0,0.00024844,2]
[379241946,1755217841871,-4188.89,0.00024844,2]
[379241947,1755217841881,-400.0,0.00024844,2]
[379241948,1755217841895,-400.0,0.00024844,2]
[379241949,1755217841905,-400.0,0.00024844,2]
[379241950,1755217841915,-400.0,0.00024844,2]
[379241951,1755217841924,-160.0,0.00024845,2]
[379241952,1755217841934,-600.0,0.00024845,2]
[379241953,1755217841943,-3000.0,0.00024845,2]
[379241954,1755217841954,-151.0,0.00024845,2]
[379241955,1755217841963,-300.0,0.00024845,2]
[379241956,1755217841973,-500.0,0.00024845,2]
[379241957,1755217841982,-200.0,0.00024845,2]
[379241958,1755217841991,-500.0,0.00024845,2]
[379241959,1755217842001,-200.0,0.00024845,2]
[379241960,1755217842010,-285.61442275,0.00024845,2]
[379241961,1755217842020,-200.0,0.00024845,2]
[379241962,1755217842030,-200.0,0.00024845,2]
[379241963,1755217842040,-200.0,0.00024845,2]
[379241964,1755217842050,-200.0,0.00024845,2]
[379241965,1755217842060,-200.0,0.00024845,2]
[379241966,1755217842070,-200.0,0.00024845,2]
[379241967,1755217842079,-200.0,0.00024845,2]
[379241968,1755217842088,-200.0,0.00024845,2]
[379241969,1755217842098,-500.0,0.00024845,2]
[379241970,1755217842107,-151.0,0.00024845,2]
[379241971,1755217842117,-500.0,0.00024845,2]
[379241972,1755217842127,-500.0,0.00024845,2]
[379241973,1755217842136,-500.0,0.00024845,2]
[379241975,1755217842146,-500.0,0.00024845,2]
[379241976,1755217842156,-500.0,0.00024845,2]
[379241977,1755217842166,-500.0,0.00024845,2]
[379241978,1755217842175,-500.0,0.00024845,2]
[379241979,1755217842185,-500.0,0.00024845,2]
[379241980,1755217842195,-500.0,0.00024845,2]
[379241981,1755217842207,-400.0,0.00024848,2]
[379241982,1755217842216,-400.0,0.00024848,2]
[379241983,1755217842227,-400.0,0.00024848,2]
[379241984,1755217842237,-400.0,0.00024848,2]
[379241985,1755217842247,-400.0,0.00024848,2]
[379241986,1755217842257,-400.0,0.00024848,2]
[379241987,1755217842267,-1561.91,0.00024848,2]
[379241988,1755217842276,-400.0,0.00024848,2]
[379241989,1755217842285,-400.0,0.00024848,2]
[379241990,1755217842295,-400.0,0.00024848,2]
[379241991,1755217842304,-400.0,0.00024848,2]
[379241993,1755217842314,-400.0,0.00024848,2]
[379241995,1755217842323,-488.37482069,0.00024848,2]
[379241997,1755217842333,-400.0,0.00024848,2]
[379241998,1755217842343,-400.0,0.00024848,2]
[379241999,1755217842352,-400.0,0.00024848,2]
[379242000,1755217842362,-400.0,0.00024848,2]
[379242001,1755217842371,-400.0,0.00024848,2]
[379242002,1755217842380,-400.0,0.00024848,2]
[379242003,1755217842390,-872.18,0.00024848,2]
[379242004,1755217842399,-400.0,0.00024848,2]
[379242005,1755217842409,-400.0,0.00024848,2]
[379242006,1755217842419,-10902.62,0.00024848,2]
[379242007,1755217842428,-166.11470442,0.00024848,2]
[379242008,1755217842437,-400.0,0.00024848,2]
[379242009,1755217842447,-400.0,0.00024848,2]
[379242010,1755217842458,-4629.83,0.00024848,2]
[379242011,1755217842467,-2120.52,0.00024848,2]
[379242012,1755217842476,-400.0,0.00024848,2]
[379242013,1755217842486,-400.0,0.00024848,2]
[379242014,1755217842495,-400.0,0.00024848,2]
[379242015,1755217842505,-10446.02,0.00024848,2]
[379242016,1755217842514,-400.0,0.00024848,2]
[379242017,1755217842524,-3796.11,0.00024848,2]
[379242018,1755217842533,-9390.13,0.00024848,2]
[379242019,1755217842542,-400.0,0.00024848,2]
[379242020,1755217842552,-400.0,0.00024848,2]
[379242021,1755217842561,-400.0,0.00024848,2]
[379242022,1755217842571,-6682.58,0.00024848,2]
[379242023,1755217842580,-400.0,0.00024848,2]
[379242024,1755217842590,-400.0,0.00024848,2]
[379242025,1755217842599,-17344.49,0.00024848,2]
[379242026,1755217842608,-400.0,0.00024848,2]
[379242027,1755217842618,-400.0,0.00024848,2]
[379242028,1755217842627,-5069.4,0.00024848,2]
[379242029,1755217842636,-400.0,0.00024848,2]
[379242030,1755217842646,-8901.77,0.00024848,2]
[379242031,1755217842655,-400.0,0.00024848,2]
[379242032,1755217842665,-400.0,0.00024848,2]
[379242033,1755217842675,-7593.23,0.00024848,2]
[379242034,1755217842684,-14783.38,0.00024848,2]
[379242035,1755217842693,-400.0,0.00024848,2]
[379242036,1755217842703,-14062.45,0.00024848,2]
[379242037,1755217842713,-400.0,0.00024848,2]
[379242038,1755217842722,-5569.61,0.00024848,2]
[379242039,1755217842731,-5920.13,0.00024848,2]
[379242040,1755217842740,-4220.73,0.00024848,2]
[379242041,1755217842750,-12798.83,0.00024848,2]
[379242042,1755217842760,-5957.61,0.00024848,2]
[379242043,1755217842769,-9586.89,0.00024848,2]
[379242044,1755217842779,-178399.467824,0.00024849,2]
[379242045,1755217842788,-664.68,0.00024849,2]
[379242046,1755217842797,-400.0,0.00024849,2]
[379242047,1755217842809,-400.0,0.00024849,2]
[379242048,1755217842819,-400.0,0.00024849,2]
[379242049,1755217842828,-494.73319248,0.00024849,2]
[379242050,1755217842838,-400.70671271,0.00024849,2]
[379242051,1755217842847,-400.0,0.00024849,2]
[379242053,1755217842857,-400.0,0.00024849,2]
[379242056,1755217842866,-400.0,0.00024849,2]
[379242058,1755217842876,-400.0,0.00024849,2]
[379242060,1755217842887,-400.0,0.00024849,2]
[379242062,1755217842897,-400.0,0.00024849,2]
[379242063,1755217842906,-400.0,0.00024849,2]
[379242064,1755217842916,-2391.77,0.00024849,2]
[379242065,1755217842925,-4184.565845,0.00024849,2]
[379242066,1755217842935,-11583.83,0.00024849,2]
[379242067,1755217842944,-297.176172,0.00024849,2]
[379242068,1755217842954,-224.18677,0.00024849,2]
[379242069,1755217842963,-1449.251645,0.00024849,2]
[379242070,1755217842973,-4497.582689,0.00024849,2]
[379242071,1755217842983,-3943.03,0.00024849,2]
[379242072,1755217842992,-2290.83,0.00024849,2]
[379242073,1755217843007,-251.21061,0.00024849,2]
[379242074,1755217843016,-5406.14,0.00024849,2]
[379242075,1755217843025,-5239.43,0.00024849,2]
[379242076,1755217843035,-6626.63,0.00024849,2]
[379242077,1755217843044,-7141.28,0.00024849,2]
[379242078,1755217843053,-5506.59,0.00024849,2]
[379242079,1755217843062,-5165.33,0.00024849,2]
[379242080,1755217843071,-1581.001795,0.00024849,2]
[379242081,1755217843081,-400.0,0.00024849,2]
[379242082,1755217843090,-5379.22,0.00024849,2]
[379242083,1755217843100,-1115.86,0.00024849,2]
[379242084,1755217843110,-400.0,0.00024849,2]
[379242085,1755217843119,-10708.43,0.00024849,2]
[379242086,1755217843129,-8783.85,0.00024849,2]
[379242087,1755217843138,-11111.08,0.00024849,2]
[379242088,1755217843148,-5409.75,0.00024849,2]
[379242089,1755217843157,-14395.38,0.00024849,2]
[379242090,1755217843166,-5920.13,0.00024849,2]
[379242091,1755217843175,-8923.44,0.00024849,2]
[379242092,1755217843184,-17292.95,0.00024849,2]
[379242093,1755217843193,-8287.63,0.00024849,2]
[379242094,1755217843205,-6000.0,0.0002485,2]
[379242095,1755217843220,-6000.0,0.0002485,2]
[379242096,1755217843229,-150.0,0.00024855,4]
[379242097,1755217843238,-5920.13,0.00024858,2]
[379242098,1755217843248,-524.34982814,0.00024859,10]
[379242099,1755217843257,-400.0,0.00024859,2]
[379242100,1755217843266,-400.0,0.00024859,2]
[379242101,1755217843275,-400.0,0.00024859,2]
[379242102,1755217843284,-400.0,0.00024859,2]
[379242103,1755217843293,-400.0,0.00024859,2]
[379242104,1755217843302,-400.0,0.00024859,2]
[379242105,1755217843311,-400.0,0.00024859,2]
[379242106,1755217843320,-400.0,0.00024859,2]
[379242107,1755217843330,-4583.45,0.00024859,2]
[379242108,1755217843339,-4123.57,0.00024859,2]
[379242109,1755217843348,-1723.3,0.00024859,2]
[379242110,1755217843366,-2419.83,0.00024859,2]
[379242112,1755217843375,-400.0,0.00024859,2]
[379242113,1755217843384,-1000.89,0.00024859,2]
[379242114,1755217843394,-400.0,0.00024859,2]
[379242115,1755217843404,-3060.34,0.00024859,2]
[379242116,1755217843416,-400.0,0.00024859,2]
[379242117,1755217843433,-438.54,0.00024859,2]
[379242118,1755217843443,-5227.88,0.00024859,2]
[379242119,1755217843454,-400.0,0.00024859,2]
[379242120,1755217843463,-400.0,0.00024859,2]
[379242121,1755217843472,-400.0,0.00024859,2]
[379242122,1755217843482,-1160.47,0.00024859,2]
[379242123,1755217843491,-400.0,0.00024859,2]
[379242124,1755217843501,-2042.97,0.00024859,2]
[379242125,1755217843510,-400.0,0.00024859,2]
[379242126,1755217843520,-400.0,0.00024859,2]
[379242127,1755217843529,-727.61,0.00024859,2]
[379242128,1755217843538,-2894.92,0.00024859,2]
[379242129,1755217843547,-400.0,0.00024859,2]
[379242130,1755217843557,-400.0,0.00024859,2]
[379242131,1755217843566,-3217.15,0.00024859,2]
[379242132,1755217843575,-1561.26,0.00024859,2]
[379242133,1755217843585,-3939.74,0.00024859,2]
[379242134,1755217843594,-400.0,0.00024859,2]
[379242135,1755217843603,-1847.47,0.00024859,2]
[379242136,1755217843612,-2400.13,0.00024859,2]
[379242137,1755217843621,-400.0,0.00024859,2]
[379242138,1755217843631,-400.0,0.00024859,2]
[379242139,1755217843639,-5514.86,0.00024859,2]
[379242140,1755217843648,-400.0,0.00024859,2]
[379242141,1755217843658,-400.0,0.00024859,2]
[379242142,1755217843667,-400.0,0.00024859,2]
[379242143,1755217843676,-1325.96,0.00024859,2]
[379242144,1755217843686,-400.0,0.00024859,2]
[379242145,1755217843696,-400.0,0.00024859,2]
[379242146,1755217843708,-4578.48,0.00024859,2]
[379242147,1755217843717,-400.0,0.00024859,2]
[379242148,1755217843726,-1796.82,0.00024859,2]
[379242149,1755217843735,-400.0,0.00024859,2]
[379242150,1755217843745,-3031.8,0.00024859,2]
[379242151,1755217843755,-400.0,0.00024859,2]
[379242152,1755217843764,-4255.42,0.00024859,2]
[379242153,1755217843775,-400.0,0.00024859,2]
[379242154,1755217843784,-400.0,0.00024859,2]
[379242155,1755217843794,-618.47,0.00024859,2]
[379242156,1755217843804,-401.246059,0.00024859,2]
[379242157,1755217843819,-1512.83,0.00024859,2]
[379242158,1755217843830,-664.68,0.00024859,2]
[379242159,1755217843839,-528.00649945,0.00024859,2]
[379242160,1755217843850,-4977.59,0.00024859,2]
[379242161,1755217843862,-757.66,0.00024859,2]
[379242162,1755217843872,-1834.27,0.00024859,2]
[379242163,1755217843883,-2227.86,0.00024859,2]
[379242164,1755217843895,-400.0,0.00024859,2]
[379242165,1755217843904,-400.0,0.00024859,2]
[379242166,1755217843914,-400.0,0.00024859,2]
[379242167,1755217843923,-1497.63,0.00024859,2]
[379242168,1755217843934,-400.0,0.00024859,2]
[379242169,1755217843943,-675.86,0.00024859,2]
[379242170,1755217843954,-3151.68,0.00024859,2]
[379242171,1755217843963,-400.0,0.00024859,2]
[379242172,1755217843973,-400.0,0.00024859,2]
[379242173,1755217843982,-2585.94,0.00024859,2]
[379242174,1755217843992,-400.0,0.00024859,2]
[379242175,1755217844002,-554.38,0.00024859,2]
[379242176,1755217844011,-2108.41,0.00024859,2]
[379242177,1755217844020,-1746.74,0.00024859,2]
[379242178,1755217844030,-3254.44,0.00024859,2]
[379242179,1755217844039,-1136.81,0.00024859,2]
[379242180,1755217844048,-400.0,0.00024859,2]
[379242181,1755217844058,-4535.99,0.00024859,2]
[379242182,1755217844068,-1705.36,0.00024859,2]
[379242183,1755217844077,-2493.25,0.00024859,2]
[379242184,1755217844088,-400.0,0.00024859,2]
[379242185,1755217844098,-2966.38,0.00024859,2]
[379242186,1755217844108,-1424.8,0.00024859,2]
[379242187,1755217844118,-400.0,0.00024859,2]
[379242188,1755217844130,-400.0,0.00024859,2]
[379242189,1755217844140,-6272.77,0.00024859,2]
[379242190,1755217844151,-400.0,0.00024859,2]
[379242191,1755217844161,-400.0,0.00024859,2]
[379242192,1755217844172,-5601.4,0.00024859,2]
[379242193,1755217844184,-3226.0,0.00024859,2]
[379242194,1755217844193,-400.0,0.00024859,2]
[379242195,1755217844204,-400.0,0.00024859,2]
[379242196,1755217844213,-400.0,0.00024859,2]
[379242197,1755217844223,-3729.28,0.00024859,2]
[379242198,1755217844232,-797.67,0.00024859,2]
[379242199,1755217844243,-2000.0,0.00024859,2]
[379242200,1755217844253,-400.0,0.00024859,2]
[379242201,1755217844264,-2000.0,0.00024859,2]
[379242202,1755217844274,-2000.0,0.00024859,2]
[379242203,1755217844284,-4004.93,0.00024859,2]
[379242204,1755217844294,-2949.07,0.00024859,2]
[379242205,1755217844303,-2000.0,0.00024859,2]
[379242206,1755217844314,-2000.0,0.00024859,2]
[379242207,1755217844324,-2000.0,0.00024859,2]
[379242208,1755217844333,-2000.0,0.00024859,2]
[379242209,1755217844344,-400.0,0.00024859,2]
[379242210,1755217844354,-2000.0,0.00024859,2]
[379242211,1755217844363,-2000.0,0.00024859,2]
[379242212,1755217844373,-2000.0,0.00024859,2]
[379242213,1755217844383,-2000.0,0.00024859,2]
[379242214,1755217844392,-2000.0,0.00024859,2]
[379242215,1755217844403,-2000.0,0.00024859,2]
[379242216,1755217844414,-2000.0,0.00024859,2]
[379242217,1755217844425,-2000.0,0.00024859,2]
[379242218,1755217844435,-2000.0,0.00024859,2]
[379242219,1755217844445,-2000.0,0.00024859,2]
[379242220,1755217844456,-2000.0,0.00024859,2]
[379242221,1755217844465,-2000.0,0.00024859,2]
[379242222,1755217844475,-663.92,0.00024859,2]
[379242223,1755217844484,-2000.0,0.00024859,2]
[379242224,1755217844493,-2000.0,0.00024859,2]
[379242225,1755217844503,-2000.0,0.00024859,2]
[379242226,1755217844512,-2000.0,0.00024859,2]
[379242227,1755217844522,-2000.0,0.00024859,2]
[379242228,1755217844532,-2000.0,0.00024859,2]
[379242229,1755217844542,-2000.0,0.00024859,2]
[379242230,1755217844551,-2000.0,0.00024859,2]
[379242231,1755217844560,-2000.0,0.00024859,2]
[379242232,1755217844569,-2000.0,0.00024859,2]
[379242233,1755217844579,-2000.0,0.00024859,2]
[379242234,1755217844588,-2000.0,0.00024859,2]
[379242235,1755217844598,-2000.0,0.00024859,2]
[379242236,1755217844607,-2000.0,0.00024859,2]
[379242237,1755217844617,-2000.0,0.00024859,2]
[379242238,1755217844626,-2000.0,0.00024859,2]
[379242239,1755217844636,-2000.0,0.00024859,2]
[379242240,1755217844646,-2000.0,0.00024859,2]
[379242241,1755217844655,-400.0,0.00024859,2]
[379242242,1755217844664,-2000.0,0.00024859,2]
[379242243,1755217844674,-3248.51,0.00024859,2]